fUSD/lending_fUSD_20260402
["ID","MTS","AMOUNT","RATE_DAILY","PERIOD"]
[419282233,1775109049050,-151.0,0.00029996,7]
[419282234,1775109049059,-183.53395381,0.00029998,10]
[419282235,1775109049068,-300.0,0.00029998,10]
[419282236,1775109049076,-238.64014836,0.00029998,2]
[419282237,1775109049085,-300.0,0.00029998,10]
[419282238,1775109049094,-169962.83547935,0.00029999,120]
[419282239,1775109049103,-151.615039,0.00029999,7]
[419282240,1775109049112,-151.615039,0.00029999,7]
[419282241,1775109049120,-151.615039,0.00029999,7]
[419282242,1775109049130,-151.615039,0.00029999,7]
[419282243,1775109049138,-151.0,0.00029999,7]
[419282244,1775109049147,-151.0,0.00029999,7]
[419282245,1775109049156,-151.0,0.00029999,7]
[419282246,1775109049165,-151.0,0.00029999,7]
[419282247,1775109049174,-216.593968,0.00029999,7]
[419282248,1775109049183,-216.593968,0.00029999,7]
[419282249,1775109049193,-216.593968,0.00029999,7]
[419282250,1775109049202,-216.593968,0.00029999,7]
[419282251,1775109049211,-2969.095311,0.00029999,7]
[419282252,1775109049220,-2969.095311,0.00029999,7]
[419282253,1775109049229,-2969.095311,0.00029999,7]
[419282254,1775109049238,-2969.095311,0.00029999,7]
[419282255,1775109049247,-6078.056687,0.00029999,7]
[419282256,1775109049257,-6078.056687,0.00029999,7]
[419282257,1775109049266,-6078.056687,0.00029999,7]
[419282258,1775109049274,-6078.056687,0.00029999,7]
[419282259,1775109049283,-151.0,0.00029999,7]
[419282260,1775109049293,-577.911486,0.00029999,7]
[419282261,1775109049302,-577.911486,0.00029999,7]
[419282262,1775109049311,-151.0,0.00029999,7]
[419282263,1775109049320,-577.911486,0.00029999,7]
[419282264,1775109049329,-577.911486,0.00029999,7]
[419282265,1775109049338,-474.889602,0.00029999,7]
[419282266,1775109049347,-474.889602,0.00029999,7]
[419282267,1775109049356,-474.889602,0.00029999,7]
[419282268,1775109049364,-474.889602,0.00029999,7]
[419282269,1775109049374,-1738.5919,0.0003,3]
[419282270,1775109049383,-179.35579623,0.0003,120]
[419282271,1775109049392,-1000.0,0.0003,30]
[419282272,1775109049401,-300.0,0.0003,15]
[419282273,1775109049411,-160.0,0.0003,120]
[419282274,1775109049419,-1041.1,0.0003,30]
[419282275,1775109049429,-160.0,0.0003,120]
[419282276,1775109049438,-160.0,0.0003,120]
[419282277,1775109049447,-160.0,0.0003,120]
[419282278,1775109049456,-2000.0,0.000303,2]
[419282279,1775109049466,-1294.77452681,0.00030537,2]
[419282280,1775109049475,-151.0,0.00030582,7]
[419282281,1775109049483,-151.0,0.00030582,7]
[419282282,1775109049492,-152.0,0.00030626,16]
[419282283,1775109049502,-250.79501656,0.00030626,5]
[419282284,1775109049511,-328.2,0.00030814,30]
[419282285,1775109049521,-1115.0,0.00030865,5]
[419282286,1775109049530,-160.0,0.000309,120]
[419282287,1775109049538,-15779.79709209,0.00030904,2]
[419282288,1775109049547,-214.36442556,0.00030904,2]
[419282289,1775109049557,-2741.01519258,0.00030904,2]
[419282290,1775109049566,-500.0,0.00031026,120]
[419282291,1775109049576,-151.0,0.00031074,7]
[419282292,1775109049584,-151.0,0.00031074,7]
[419282293,1775109049594,-1300.0,0.00031074,21]
[419282294,1775109049603,-2800.0,0.00031074,21]
[419282295,1775109049612,-805.1695,0.000311,72]
[419282296,1775109049621,-150.46,0.00031115,30]
[419282297,1775109049630,-4206.7751855,0.00031196,2]
[419282298,1775109049639,-1000.0,0.00031342,2]
[419282299,1775109049648,-8189.54886437,0.00031434,2]
[419282300,1775109049657,-150.0,0.0003147,2]
[419282301,1775109049666,-2375.3434491,0.0003158,2]
[419282302,1775109049675,-1600.0,0.00031814,120]
[419282303,1775109049684,-596.28199856,0.00032,120]
[419282304,1775109049693,-205.40956921,0.00032,120]
[419282305,1775109049702,-202.54666622,0.00032,120]
[419282306,1775109049711,-268.17305256,0.00032,120]
[419282307,1775109049720,-171.86218494,0.00032,120]
[419282308,1775109049730,-184.6398266,0.00032,120]
[419282309,1775109049738,-161.2436046,0.00032,120]
[419282310,1775109049748,-500.0,0.00032,30]
[419282311,1775109049756,-1090.26,0.00032,120]
[419282312,1775109049765,-3999.9,0.00032,120]
[419282313,1775109049775,-183.90111898,0.00032,120]
[419282314,1775109049783,-8439.0,0.00032022,2]
[419282315,1775109049792,-1046.0,0.00032108,2]
[419282316,1775109049801,-1346.0,0.00032108,2]
[419282317,1775109049811,-621.0,0.00032108,2]
[419282318,1775109049819,-1263.0,0.00032108,2]
[419282319,1775109049828,-415.0,0.00032108,2]
[419282320,1775109049838,-3768.0,0.00032108,2]
[419282321,1775109049847,-354.86,0.00032131,60]
[419282322,1775109049856,-907.8531,0.000323,77]
[419282323,1775109049865,-500.0,0.00032359,120]
[419282324,1775109049874,-1182.61648409,0.00032408,5]
[419282325,1775109049883,-3510.0,0.00032463,7]
[419282326,1775109049892,-150.0,0.00032619,120]
[419282327,1775109049902,-369.23,0.000327,30]
[419282328,1775109049911,-500.0,0.00032712,2]
[419282329,1775109049920,-1300.0,0.00032718,21]
[419282330,1775109049929,-2800.0,0.00032718,21]
[419282331,1775109049939,-1571.0,0.00032737,11]
[419282332,1775109049947,-324.0,0.00032849,2]
[419282333,1775109049956,-229.80061807,0.0003287,2]
[419282334,1775109049965,-300.0,0.00032876,10]
[419282335,1775109049974,-150.0,0.00032876,2]
[419282336,1775109049983,-818.33339076,0.00032877,10]
[419282337,1775109049992,-2902.460976,0.00032877,7]
[419282338,1775109050001,-2902.460976,0.00032877,7]
[419282339,1775109050010,-2902.460976,0.00032877,7]
[419282340,1775109050018,-2902.460976,0.00032877,7]
[419282341,1775109050027,-2902.460976,0.00032877,7]
[419282342,1775109050036,-2902.460976,0.00032877,7]
[419282343,1775109050045,-2902.460976,0.00032877,7]
[419282344,1775109050054,-2902.460976,0.00032877,7]
[419282345,1775109050063,-2902.460976,0.00032877,7]
[419282346,1775109050072,-2902.460976,0.00032877,7]
[419282347,1775109050081,-2902.460976,0.00032877,7]
[419282348,1775109050090,-2902.460976,0.00032877,7]
[419282349,1775109050099,-2902.460976,0.00032877,7]
[419282350,1775109050108,-2902.460976,0.00032877,7]
[419282351,1775109050117,-2902.460976,0.00032877,7]
[419282352,1775109050126,-2902.460976,0.00032877,7]
[419282353,1775109050136,-150.0,0.00032877,10]
[419282354,1775109050146,-150.0,0.00032877,10]
[419282355,1775109050154,-150.0,0.00032877,10]
[419282356,1775109050164,-150.0,0.00032877,10]
[419282357,1775109050173,-268.68331122,0.00032877,10]
[419282358,1775109050182,-253.13,0.000329,2]
[419282359,1775109050192,-1929.8,0.000329,30]
[419282360,1775109050201,-1509.66,0.000329,30]
[419282361,1775109050210,-1641.26,0.000329,30]
[419282362,1775109050338,-596.28199856,0.00033,120]
[419282363,1775109050348,-205.40956921,0.00033,120]
[419282364,1775109050357,-202.54666622,0.00033,120]
[419282365,1775109050367,-171.86218494,0.00033,120]
[419282366,1775109050376,-161.2436046,0.00033,120]
[419282367,1775109050386,-734.69,0.00033,120]
[419282368,1775109050395,-500.0,0.00033,30]
[419282369,1775109050404,-371.8,0.00033,120]
[419282370,1775109050413,-3999.9,0.00033,120]
[419282371,1775109050422,-183.90111898,0.00033,120]
[419282372,1775109050431,-150.0,0.00033043,2]
[419282373,1775109050440,-1023.6321,0.000335,82]
[419282374,1775109050449,-500.0,0.00033693,120]
[419282375,1775109050458,-1929.8,0.000337,30]
[419282376,1775109050467,-1509.66,0.000337,30]
[419282377,1775109050476,-1641.26,0.000337,30]
[419282378,1775109050485,-279.48604881,0.0003375,5]
[419282379,1775109050495,-8189.54886437,0.00033839,2]
[419282380,1775109050504,-596.28199856,0.000339,120]
[419282381,1775109050514,-205.40956921,0.000339,120]
[419282382,1775109050523,-202.54666622,0.000339,120]
[419282383,1775109050532,-161.2436046,0.000339,120]
[419282384,1775109050541,-171.86218494,0.000339,120]
[419282385,1775109050550,-3999.9,0.000339,120]
[419282386,1775109050559,-2000.0,0.00034,2]
[419282387,1775109050569,-2375.3434491,0.00034005,2]
[419282388,1775109050578,-150.46,0.00034051,30]
[419282389,1775109050586,-343.0,0.00034344,30]
[419282390,1775109050596,-446.0,0.00034344,30]
[419282391,1775109050605,-1438.0,0.00034344,30]
[419282392,1775109050615,-417.0,0.00034344,30]
[419282393,1775109050624,-151.0,0.00034349,30]
[419282394,1775109050633,-200.0,0.00034359,30]
[419282395,1775109050642,-1300.0,0.00034362,21]
[419282396,1775109050651,-2800.0,0.00034362,21]
[419282397,1775109050660,-354.86,0.00034558,90]
[419282398,1775109050669,-410.25,0.00034587,30]
[419282399,1775109050678,-1929.8,0.000346,30]
[419282400,1775109050687,-1509.66,0.000346,30]
[419282401,1775109050696,-1641.26,0.000346,30]
[419282402,1775109050707,-150.0,0.00034696,2]
[419282403,1775109050716,-178.99023571,0.000347,2]
[419282404,1775109050726,-1154.1764,0.000347,87]
[419282405,1775109050735,-1500.0,0.00034795,2]
[419282406,1775109050744,-679.13,0.00034852,2]
[419282407,1775109050754,-169.200751,0.00034861,21]
[419282408,1775109050763,-500.0,0.00034922,2]
[419282409,1775109050773,-300.0,0.00034999,10]
[419282410,1775109050783,-224.98983761,0.00034999,120]
[419282411,1775109050793,-596.28199856,0.00035,120]
[419282412,1775109050802,-202.54666622,0.00035,120]
[419282413,1775109050812,-161.2436046,0.00035,120]
[419282414,1775109050822,-171.86218494,0.00035,120]
[419282415,1775109050832,-186194.0,0.00035,90]
[419282416,1775109050841,-1000.0,0.00035,120]
[419282417,1775109050851,-5146.86722479,0.00035,15]
[419282418,1775109050860,-3999.9,0.00035,120]
[419282419,1775109050870,-151.615039,0.00035,7]
[419282420,1775109050880,-151.615039,0.00035,7]
[419282421,1775109050891,-151.615039,0.00035,7]
[419282422,1775109050900,-151.615037,0.00035,7]
[419282423,1775109050910,-151.0,0.00035,7]
[419282424,1775109050919,-151.0,0.00035,7]
[419282425,1775109050929,-151.0,0.00035,7]
[419282426,1775109050938,-151.0,0.00035,7]
[419282427,1775109050948,-151.0,0.00035,7]
[419282428,1775109050957,-151.0,0.00035,7]
[419282429,1775109050966,-151.0,0.00035,7]
[419282430,1775109050976,-216.593968,0.00035,7]
[419282431,1775109050986,-216.593968,0.00035,7]
[419282432,1775109050995,-216.593968,0.00035,7]
[419282433,1775109051005,-216.59396,0.00035,7]
[419282434,1775109051015,-200.0,0.00035,3]
[419282435,1775109051024,-2969.095311,0.00035,7]
[419282436,1775109051033,-2969.095311,0.00035,7]
[419282437,1775109051042,-2969.095311,0.00035,7]
[419282438,1775109051051,-2902.460976,0.00035,7]
[419282439,1775109051061,-2969.095312,0.00035,7]
[419282440,1775109051070,-2902.460976,0.00035,7]
[419282441,1775109051080,-2902.460976,0.00035,7]
[419282442,1775109051089,-2902.460977,0.00035,7]
[419282443,1775109051098,-6078.056687,0.00035,7]
[419282444,1775109051108,-6078.056687,0.00035,7]
[419282445,1775109051117,-6078.056687,0.00035,7]
[419282446,1775109051127,-6078.056679,0.00035,7]
[419282447,1775109051136,-151.0,0.00035,7]
[419282448,1775109051146,-577.911486,0.00035,7]
[419282449,1775109051155,-577.911486,0.00035,7]
[419282450,1775109051165,-189.040741,0.00035,7]
[419282451,1775109051175,-577.911486,0.00035,7]
[419282452,1775109051184,-577.911482,0.00035,7]
[419282453,1775109051194,-474.889602,0.00035,7]
[419282454,1775109051203,-474.889602,0.00035,7]
[419282455,1775109051213,-474.889602,0.00035,7]
[419282456,1775109051223,-474.8896,0.00035,7]
[419282457,1775109051232,-500.0,0.00035026,120]
[419282458,1775109051241,-300.0,0.00035037,10]
[419282459,1775109051251,-184.0975852,0.00035038,120]
[419282460,1775109051261,-500.0,0.00035038,120]
[419282461,1775109051271,-500.0,0.00035038,120]
[419282462,1775109051280,-500.0,0.00035038,120]
[419282463,1775109051290,-500.0,0.00035038,120]
[419282464,1775109051300,-250.0,0.00035038,120]
[419282465,1775109051309,-500.0,0.00035038,120]
[419282466,1775109051319,-500.0,0.00035038,120]
[419282467,1775109051329,-500.0,0.00035038,120]
[419282468,1775109051338,-500.0,0.00035038,120]
[419282469,1775109051348,-500.0,0.00035038,120]
[419282470,1775109051358,-500.0,0.00035038,120]
[419282471,1775109051368,-500.0,0.00035038,120]
[419282472,1775109051377,-500.0,0.00035038,120]
[419282473,1775109051387,-500.0,0.00035038,120]
[419282474,1775109051396,-500.0,0.00035038,120]
[419282475,1775109051405,-500.0,0.00035038,120]
[419282476,1775109051415,-646.9988351,0.00035038,120]
[419282477,1775109051425,-500.0,0.00035038,120]
[419282478,1775109051434,-500.0,0.00035038,120]
[419282479,1775109051444,-500.0,0.00035038,120]
[419282480,1775109051454,-912.7287352,0.00035038,120]
[419282481,1775109051463,-500.0,0.00035038,120]
[419282482,1775109051473,-500.0,0.00035038,120]
[419282483,1775109051482,-500.0,0.00035038,120]
[419282484,1775109051493,-500.0,0.00035038,120]
[419282485,1775109051503,-500.0,0.00035038,120]
[419282486,1775109051512,-737.5348311,0.00035038,120]
[419282487,1775109051522,-717.864713,0.00035038,120]
[419282488,1775109051532,-302.2227749,0.00035038,120]
[419282489,1775109051541,-755.5547522,0.00035038,120]
[419282490,1775109051551,-255.0449765,0.00035038,120]
[419282491,1775109051560,-499.9095041,0.00035038,120]
[419282492,1775109051570,-151.8079326,0.00035038,120]
[419282493,1775109051579,-500.0,0.00035038,120]
[419282494,1775109051589,-500.0,0.00035038,120]
[419282495,1775109051599,-500.0,0.00035038,120]
[419282496,1775109051609,-500.0,0.00035038,120]
[419282497,1775109051618,-500.0,0.00035038,120]
[419282498,1775109051628,-500.0,0.00035038,120]
[419282499,1775109051637,-753.2868449,0.00035038,120]
[419282500,1775109051647,-500.0,0.00035038,120]
[419282501,1775109051656,-500.0,0.00035038,120]
[419282502,1775109051666,-500.0,0.00035038,120]
[419282503,1775109051676,-500.0,0.00035038,120]
[419282504,1775109051695,-500.0,0.00035038,120]
[419282505,1775109051708,-500.0,0.00035038,120]
[419282506,1775109051718,-500.0,0.00035038,120]
[419282507,1775109051729,-962.14554,0.00035038,120]
[419282508,1775109051739,-500.0,0.00035038,120]
[419282509,1775109051750,-500.0,0.00035038,120]
[419282510,1775109051760,-500.0,0.00035038,120]
[419282511,1775109051770,-500.0,0.00035038,120]
[419282512,1775109051780,-500.0,0.00035038,120]
[419282513,1775109051791,-500.0,0.00035038,120]
[419282514,1775109051801,-500.0,0.00035038,120]
[419282515,1775109051811,-500.0,0.00035038,120]
[419282516,1775109051822,-500.0,0.00035038,120]
[419282517,1775109051833,-500.0,0.00035038,120]
[419282518,1775109051844,-500.0,0.00035038,120]
[419282519,1775109051854,-500.0,0.00035038,120]
[419282520,1775109051865,-500.0,0.00035038,120]
[419282521,1775109051875,-500.0,0.00035038,120]
[419282522,1775109051887,-500.0,0.00035038,120]
[419282523,1775109051897,-500.0,0.00035038,120]
[419282524,1775109051907,-779.7033879,0.00035038,120]
[419282525,1775109051918,-398.5682229,0.00035038,120]
[419282526,1775109051929,-500.0,0.00035038,120]
[419282527,1775109051939,-500.0,0.00035038,120]
[419282528,1775109051949,-500.0,0.00035038,120]
[419282529,1775109051959,-649.0337083,0.00035038,120]
[419282530,1775109051968,-187.8358372,0.00035038,120]
[419282531,1775109051978,-2100.0,0.00035038,120]
[419282532,1775109051987,-2100.0,0.00035038,120]
[419282533,1775109051997,-2100.0,0.00035038,120]
[419282534,1775109052007,-2100.0,0.00035038,120]
[419282535,1775109052016,-2100.0,0.00035038,120]
[419282536,1775109052026,-2100.0,0.00035038,120]
[419282537,1775109052036,-2100.0,0.00035038,120]
[419282538,1775109052045,-2100.0,0.00035038,120]
[419282539,1775109052055,-2100.0,0.00035038,120]
[419282540,1775109052065,-2100.0,0.00035038,120]
[419282541,1775109052074,-2100.0,0.00035038,120]
[419282542,1775109052084,-2100.0,0.00035038,120]
[419282543,1775109052094,-2100.0,0.00035038,120]
[419282544,1775109052103,-2100.0,0.00035038,120]
[419282545,1775109052113,-2100.0,0.00035038,120]
[419282546,1775109052122,-2100.0,0.00035038,120]
[419282547,1775109052132,-2100.0,0.00035038,120]
[419282548,1775109052142,-2100.0,0.00035038,120]
[419282549,1775109052152,-2100.0,0.00035038,120]
[419282550,1775109052162,-2100.0,0.00035038,120]
[419282551,1775109052172,-2100.0,0.00035038,120]
[419282552,1775109052182,-2100.0,0.00035038,120]
[419282553,1775109052199,-2100.0,0.00035038,120]
[419282554,1775109052210,-2100.0,0.00035038,120]
[419282555,1775109052221,-2100.0,0.00035038,120]
[419282556,1775109052231,-2100.0,0.00035038,120]
[419282557,1775109052242,-2100.0,0.00035038,120]
[419282558,1775109052252,-3374.1957002,0.00035038,120]
[419282559,1775109052263,-500.0,0.00035038,120]
[419282560,1775109052273,-500.0,0.00035038,120]
[419282561,1775109052283,-500.0,0.00035038,120]
[419282562,1775109052294,-500.0,0.00035038,120]
[419282563,1775109052304,-500.0,0.00035038,120]
[419282564,1775109052315,-500.0,0.00035038,120]
[419282565,1775109052325,-500.0,0.00035038,120]
[419282566,1775109052335,-500.0,0.00035038,120]
[419282567,1775109052346,-500.0,0.00035038,120]
[419282568,1775109052356,-500.0,0.00035038,120]
[419282569,1775109052366,-500.0,0.00035038,120]
[419282570,1775109052375,-500.0,0.00035038,120]
[419282571,1775109052387,-500.0,0.00035038,120]
[419282572,1775109052398,-500.0,0.00035038,120]
[419282573,1775109052408,-500.0,0.00035038,120]
[419282574,1775109052418,-870.2765931,0.00035038,120]
[419282575,1775109052428,-515.55,0.00035108,2]
[419282576,1775109052438,-1346.0,0.00035108,2]
[419282577,1775109052877,-621.0,0.00035108,2]
[419282578,1775109052942,-1263.0,0.00035108,2]
[419282579,1775109052954,-415.0,0.00035108,2]
[419282580,1775109052966,-3768.0,0.00035108,2]
[419282581,1775109052977,-150.0,0.00035263,120]
[419282582,1775109052988,-343.0,0.00035344,30]
[419282583,1775109053000,-446.0,0.00035344,30]
[419282584,1775109053010,-1438.0,0.00035344,30]
[419282585,1775109053019,-417.0,0.00035344,30]
[419282586,1775109053030,-151.0,0.00035349,30]
[419282587,1775109053040,-200.0,0.00035359,30]
[419282588,1775109053050,-1929.8,0.000355,30]
[419282589,1775109053059,-1509.66,0.000355,30]
[419282590,1775109053071,-1641.26,0.000355,30]
[419282591,1775109053082,-340.61864835,0.00035616,120]
[419282592,1775109053093,-2691.0,0.00035616,120]
[419282593,1775109053102,-306.721982,0.00035616,7]
[419282594,1775109053112,-306.721982,0.00035616,7]
[419282595,1775109053121,-306.721982,0.00035616,7]
[419282596,1775109053130,-306.721982,0.00035616,7]
[419282597,1775109053140,-306.721982,0.00035616,7]
[419282598,1775109053151,-306.721982,0.00035616,7]
[419282599,1775109053162,-306.721982,0.00035616,7]
[419282600,1775109053171,-306.721982,0.00035616,7]
[419282601,1775109053181,-306.721982,0.00035616,7]
[419282602,1775109053190,-306.721982,0.00035616,7]
[419282603,1775109053200,-306.721982,0.00035616,7]
[419282604,1775109053211,-306.721982,0.00035616,7]
[419282605,1775109053221,-306.721982,0.00035616,7]
[419282606,1775109053230,-306.721982,0.00035616,7]
[419282607,1775109053240,-306.721982,0.00035616,7]
[419282608,1775109053249,-306.721982,0.00035616,7]
[419282609,1775109053259,-306.721982,0.00035616,7]
[419282610,1775109053270,-306.721982,0.00035616,7]
[419282611,1775109053281,-306.721982,0.00035616,7]
[419282612,1775109053291,-306.721984,0.00035616,7]
[419282613,1775109053302,-25000.0,0.00035681,10]
[419282614,1775109053311,-25000.0,0.0003569,10]
[419282615,1775109053321,-25000.0,0.00035698,10]
[419282616,1775109053331,-13566.62396711,0.00035707,10]
[419282617,1775109054439,-5280.07904394,0.00035707,10]
[419282618,1775109054468,-6016.0,0.00017108,2]
[419282619,1775109054478,-734.50676922,0.00023936,2]
[419282620,1775109054530,-4019.72044061,0.00014499,2]
[419282621,1775109054540,-822.21345887,0.00023936,2]
[419282622,1775109055019,-895.55543051,0.00020108,2]
[419282623,1775109055047,-726.65367492,0.00018828,2]
[419282624,1775109055059,-1803.57692773,0.00018828,2]
[419282625,1775109055071,-1489.4898379,0.00018828,2]
[419282626,1775109055080,-5120.44456949,0.00020108,2]
[419282627,1775109055089,-1000.0,0.00023,2]
[419282628,1775109055098,-577.0,0.00023108,10]
[419282629,1775109055108,-1815.0,0.00023108,10]
[419282630,1775109055117,-6016.0,0.00023108,2]
[419282631,1775109055127,-93.27977191,0.00023936,2]
[419282632,1775109055139,-1650.0,0.00023936,2]
[419282633,1775109055148,-1650.0,0.00023936,2]
[419282634,1775109055158,-1341.0,0.00023936,2]
[419282635,1775109055166,-729.20954479,0.00025635,2]
[419282636,1775109055175,-2531.82791125,0.00035707,10]
[419282637,1775109055187,-3621.4690777,0.00035707,10]
[419282638,1775109055196,-17692.52220478,0.00035716,10]
[419282639,1775109055274,-578.0,0.00027041,10]
[419282640,1775109055283,-1821.0,0.00027041,10]
[419282641,1775109055292,-281.73234648,0.000327,2]
[419282642,1775109055301,-1219.38503812,0.00035716,10]
[419282643,1775109055313,-1330.76,0.00035716,10]
[419282671,1775110210202,34024.71010519,9.5e-05,3]
[419282676,1775110232434,-250.0,0.00013,2]
[419282677,1775110232443,-590.0,0.000135,2]
[419282678,1775110232452,-342.24449685,0.00013656,2]
[419282679,1775110232462,-1580.30302271,0.00013673,2]
[419282680,1775110232473,-1659.69697729,0.00013673,2]
[419282681,1775110232482,-300.0,0.00014299,2]
[419282682,1775110232492,-300.0,0.00015661,2]
[419282683,1775110232501,-3014.79033043,0.000159,2]
[419282684,1775110232510,-223.33620162,0.0001599,2]
[419282685,1775110232519,-103.28405223,0.00015999,2]
[419282686,1775110232542,-68.4201588,0.00015999,2]
[419282687,1775110232551,-589.93772714,0.00015999,2]
[419282688,1775110232561,-292.75083336,0.00015999,2]
[419282711,1775110238551,-207.24916664,0.00015999,2]
[419282712,1775110238560,-273.90825056,0.00015999,2]
[419282713,1775110238570,-562.23168315,0.00015999,2]
[419282714,1775110238579,-200.0,0.00015999,2]
[419282715,1775110238588,-500.0,0.00015999,2]
[419282716,1775110238598,-5600.98637171,0.00016,2]
[419282717,1775110238761,-5691.908,0.00016,2]
[419282718,1775110238773,-1558.6096555,0.00016,2]
[419282719,1775110238784,-1155.05164175,0.00016,2]
[419282756,1775110240752,-659872.98521026,0.00016,2]
[419282757,1775110240761,-286023.12664118,0.00016,2]
[419282762,1775110243834,-719.44125252,0.00016,2]
[419282763,1775110244098,-1055.98458556,0.00016,2]
[419282764,1775110244152,-1436.07161275,0.00016,2]
[419282767,1775110246411,-62367.3956646,0.00016,2]
[419282768,1775110246466,-493.02592623,0.00016,2]
[419282769,1775110246572,-668.1741404,0.00016,2]
[419282806,1775111205050,999.0,8.31e-05,2]
[419282807,1775111228301,166.0,0.000165,59]
[419282808,1775111244126,166.0,0.00016101,120]
[419282809,1775111298007,444.0,0.000165,59]
[419282817,1775111440688,-500.0,0.000135,2]
[419282820,1775111440858,-78.0,0.000135,2]
[419282821,1775111440867,-522.34479608,0.00014,2]
[419282822,1775111440884,-166.66,0.00014346,2]
[419282823,1775111440895,-300.0,0.00014538,2]
[419282824,1775111440904,-166.66,0.00014648,2]
[419282825,1775111440914,-151.56,0.0001469,2]
[419282827,1775111440923,-139.95783651,0.00014738,2]
[419282828,1775111440940,-788.45865194,0.00014738,2]
[419282829,1775111440951,-1071.58351155,0.00014738,2]
[419282830,1775111440960,-166.66,0.0001495,2]
[419282831,1775111440970,-255.0,0.00015251,2]
[419282832,1775111440979,-444.0,0.00015251,2]
[419282833,1775111440988,-444.0,0.00015251,2]
[419282871,1775111441401,-137.54155749,0.00015252,2]
[419282889,1775111442521,-29.11844251,0.00015252,2]
[419282890,1775111442531,-324.0,0.00015336,2]
[419282892,1775111442540,-222.0,0.00015506,2]
[419282894,1775111442550,-141.39273522,0.00015506,2]
[419282895,1775111442561,-191.60726478,0.00015506,2]
[419282896,1775111442571,-258.66,0.00015507,2]
[419282898,1775111442580,-155.0,0.00015553,2]
[419282900,1775111442589,-155.0,0.00015553,2]
[419282902,1775111442610,-166.66,0.00015554,2]
[419282903,1775111442619,-6.37184111,0.00015557,2]
[419282904,1775111442632,-148.62815889,0.00015557,2]
[419282905,1775111442642,-166.66,0.00015558,2]
[419282906,1775111442651,-495.97,0.000156,2]
[419282907,1775111442661,-396.70564202,0.000156,5]
[419282908,1775111442676,-875.50000001,0.000156,5]
[419282910,1775111442688,-369.885,0.000156,5]
[419282912,1775111442699,-57.90935797,0.000156,5]
[419282913,1775111442709,-151.56,0.00015608,2]
[419282915,1775111442719,-1571.0,0.00015621,2]
[419282916,1775111442728,-2809.0,0.00015671,2]
[419282917,1775111442738,-1764.517,0.0001568,2]
[419282918,1775111442748,-153.74130846,0.0001568,2]
[419282919,1775111442758,-3400.0,0.000157,5]
[419282920,1775111442768,-5000.0,0.000158,2]
[419282921,1775111442778,-8424.42254905,0.000158,2]
[419282922,1775111442788,-218.8668,0.000158,2]
[419282923,1775111442798,-1194.317,0.000158,2]
[419282924,1775111442808,-5200.0,0.000158,5]
[419282925,1775111442818,-2549.40464372,0.000158,2]
[419282926,1775111442827,-2637.94153917,0.000158,2]
[419282927,1775111442838,-3505.64598795,0.000158,2]
[419282928,1775111442848,-9221.26883546,0.0001584,2]
[419282929,1775111442857,-166.66,0.00015856,2]
[419282930,1775111442867,-495.97,0.00015874,2]
[419282931,1775111442876,-238.18,0.0001589,2]
[419282932,1775111442885,-238.18,0.0001589,2]
[419282933,1775111442895,-238.18,0.0001589,2]
[419282934,1775111442905,-238.18,0.0001589,2]
[419282935,1775111442915,-238.18,0.0001589,2]